Cogmind - Beta 14 @@@ ROGUE MODE // 2024.09.04 @ 00:10:54 Player: Trione Result: Destroyed by Z3-GZ8(R) with Subdweller Laser Performance ------------- Evolutions (0) 0 Regions Visited (2) 400 Robots Destroyed (35) 175 Value Destroyed (942) 942 Prototype IDs (11) 220 Alien Tech Used (0) 0 Bonus (0) 0 TOTAL SCORE: 1737 Bonus ------- None Cogmind --------- Core Integrity 0/250 Matter 290/300 Energy 31/100 System Corruption 3% Temperature Cool (6) Movement Rolling (150) Ox4 Location -10/Subcaves Parts ------- > --- POWER (1) -------- Subdweller Power Source > --- PROPULSION (2) --- Armored Wheel Armored Wheel > --- UTILITY (2) ------ Huge Storage Unit Subdweller Optics > --- WEAPON (2) ------- Subdweller Beam Cannon Hammer > --- INVENTORY (25) --- Armored Wheel Improved Heat Sink Disposable Heat Sink Disposable Heat Sink Large Storage Unit Humpback Humpback Medium Matter Pod (100) Gun Armor EM Pulse Gun Riot Gun Particle Gun Particle Gun Subdweller Laser Subdweller Machine Gun Barrage Gun Barrage Gun Barrage Gun Heavy Battle Rifle Light Cannon Light Cannon Battle Cannon Multitool Peak State ------------ > --- POWER ------------ Subdweller Power Source > --- PROPULSION ------- Armored Wheel Armored Wheel > --- UTILITY ---------- Huge Storage Unit Subdweller Optics > --- WEAPON ----------- Barrage Gun Battle Cannon > --- INVENTORY -------- Armored Wheel Improved Heat Sink Disposable Heat Sink Disposable Heat Sink Large Storage Unit Humpback Humpback Medium Matter Pod Gun Armor EM Pulse Gun Riot Gun Particle Gun Particle Gun Subdweller Laser Subdweller Beam Cannon Barrage Gun Barrage Gun Heavy Battle Rifle Light Cannon Light Cannon Multitool Hammer [Rating: 19] Favorites ----------- Power Light Ion Engine Engine Light Ion Engine Propulsion Armored Wheel Treads Light Treads Wheel Armored Wheel Utility Huge Storage Unit Device Subdweller Optics Storage Huge Storage Unit Protection Light Armor Plating Weapon Assault Rifle Energy Gun EM Shotgun Energy Cannon Subdweller Beam Cannon Ballistic Gun Assault Rifle Ballistic Cannon Light Cannon Special Weapon Mining Laser Impact Weapon Hammer Build | -11 -10 -10 ------- Run | Yrd Mat Sub Slots Evolved . | . . . Power . | . . . Propulsion . | . . . Utility . | . . . Weapon . | . . . Parts Attached 57 | 7 24 26 Power 5 | 1 2 2 Engine 5 | 1 2 2 Core . | . . . Reactor . | . . . Propulsion 9 | 2 4 3 Treads 1 | . 1 . Leg . | . . . Wheel 8 | 2 3 3 Hover . | . . . Flight . | . . . Utility 12 | 2 6 4 Device 5 | 1 2 2 Storage 5 | 1 3 1 Processor . | . . . Hackware . | . . . Protection 2 | . 1 1 Artifact . | . . . Weapon 31 | 2 12 17 Energy Gun 4 | . 2 2 Energy Cannon 4 | . . 4 Ballistic Gun 10 | 2 3 5 Ballistic Cannon 5 | . 3 2 Launcher . | . . . Special Weapon 3 | . 3 . Impact Weapon 5 | . 1 4 Slashing Weapon . | . . . Piercing Weapon . | . . . Special Melee Weapon . | . . . Unidentified Prototypes . | . . . Parts Lost 9 | . 5 4 Power 3 | . 1 2 Propulsion 2 | . 1 1 Utility 3 | . 2 1 Weapon 1 | . 1 . Highest Loss Streak 2 | . 1 2 To Critical Strikes . | . . . Average Slot Usage (%) 99 | . 99 99 Engine 13 | . 14 13 Treads 6 | . 13 . Wheel 21 | . 14 28 Device 9 | . 8 9 Storage 14 | . 14 14 Protection 4 | . 4 4 Energy Gun 5 | . 8 2 Energy Cannon 3 | . . 5 Ballistic Gun 12 | . 14 11 Ballistic Cannon 3 | . 3 3 Impact Weapon 2 | . . 3 Peak Build Rating 19 | 7 13 19 Average Rating 12 | 6 8 15 On Entrance 6 | . 7 12 Naked Turns . | . . . Heaviest Build 99 | 13 91 99 Greatest Support 32 | 32 32 32 Greatest Overweight (x) 7 | . 7 4 Average Overweight (x) 2 | . 3 2 Largest Inventory Capacity 25 | 8 25 25 Average Capacity 21 | 7 20 23 Most Carried 25 | 7 20 25 Average Carried 15 | 3 11 21 Final Capacity 25 | 8 15 25 Final Carried 25 | 7 15 25 Class Distribution -------------------- 86% | Mutant 13% | Scavenger-Mutant Dominant Class ---------------- Mutant | -10/Materials Mutant | -10/Subcaves Resources | -11 -10 -10 ----------- Run | Yrd Mat Sub Matter Collected 1497 | 324 654 519 Remotely . | . . . Salvage Created 1292 | 192 714 386 Parts 76 | 12 44 20 Haulers Intercepted 1 | . 1 . Recyclers Shooed . | . . . Parts Field Recycled . | . . . Retrieved Matter . | . . . Parts Self-Destructed . | . . . Prevented . | . . . Kills | -11 -10 -10 ------- Run | Yrd Mat Sub Combat Hostiles Destroyed 25 | . 17 8 Guns 18 | . 15 3 Cannons 7 | . 2 5 Classes Destroyed 10 | 2 6 2 Worker 2 | . 2 . Tunneler 4 | 4 . . Hauler 1 | . 1 . Recycler 1 | 1 . . Operator 1 | . 1 . Watcher 1 | . 1 . Swarmer 3 | . 3 . Grunt 14 | . 14 . Artisan 1 | . . 1 Subdweller 8 | . . 8 Best Kill Streak 5 | 3 5 2 Combat Bots Only 4 | . 4 2 Max Kills in Single Turn 2 | 1 2 1 Gunslinging . | . . . Exploded . | . . . Melee . | . . . Uniques/NPCs Destroyed . | . . . Combat | -11 -10 -10 -------- Run | Yrd Mat Sub Hostile Shots Fired 111 | . 66 45 Missed 36 | . 21 15 Damage Taken 1460 | . 544 916 Core 265 | . 94 171 Absorbed by Shields . | . . . Core Remaining (%) 100 | 100 . . Volleys Fired 130 | 9 72 49 Largest 2 | 2 2 2 Hottest 113 | 40 100 113 Shots Fired 243 | 18 135 90 Gun 186 | 18 113 55 Cannon 48 | . 13 35 Launcher . | . . . Special 9 | . 9 . Kinetic 188 | 18 108 62 Thermal 35 | . 9 26 Explosive . | . . . Electromagnetic 20 | . 18 2 Robot Hit Streak 8 | 6 7 8 Robot Miss Streak 5 | 5 4 5 Penetration Max . | . . . Secondary Targets 1 | . 1 . Max Gunslinging Chain 1 | . 1 . Shots Hit Robots 133 | 10 70 53 Core Hits 58 | 5 37 16 Critical Kills 1 | . 1 . Critical Parts Destroyed . | . . . Critical Strikes 3 | . 2 1 Destroy 2 | . 1 1 Blast 1 | . 1 . Melee Attacks 32 | . 1 31 Impact 32 | . 1 31 Slashing . | . . . Piercing . | . . . Sneak Attacks . | . . . Combat Hostiles . | . . . Follow-up Attacks . | . . . Damage Inflicted 2164 | 129 1018 1017 Guns 1714 | 129 890 695 Cannons 450 | . 128 322 Explosions . | . . . Melee . | . . . Ramming . | . . . Kinetic 1822 | 129 875 818 Thermal 199 | . . 199 Explosive . | . . . Electromagnetic 143 | . 143 . Impact . | . . . Slashing . | . . . Piercing . | . . . Highest Corruption 3 | . 3 3 Average Corruption 2 | . 2 3 Corruption Purged . | . . . Corruption Blocked . | . . . Effects 58 | . 23 35 Message Errors 21 | . 7 14 Matter Fused 13 | . 5 8 Heat Flow Errors 10 | . 3 7 Energy Discharges 5 | . 4 1 Data Loss (minor) 4 | . 1 3 Data Loss (major) 2 | . 1 1 Misfires 2 | . 1 1 Weapon Failures 1 | . 1 . Overload Shots . | . . . Overflow Damage . | . . . Projectiles . | . . . Explosions . | . . . Melee . | . . . Knockbacks 1 | . 1 . Impact . | . . . Kinetic 1 | . 1 . Secondary . | . . . Self-Inflicted Damage . | . . . Shots . | . . . Rammed . | . . . Targets Rammed . | . . . Kicked . | . . . Crushed . | . . . Highest Temperature 274 | . 274 229 Average Temperature 53 | . 50 60 Received Heat Transfer 438 | . 270 168 Siege Activations . | . . . Robots Corrupted . | . . . Combat Hostiles . | . . . Parts Fried . | . . . Impact Corruptions . | . . . Robots Melted . | . . . Combat Hostiles . | . . . Parts Melted . | . . . Heat Transferred 296 | . . 296 Parts Sabotaged . | . . . Parts Stolen . | . . . Parts Stripped . | . . . Power Chain Reactions . | . . . Alert | -11 -10 -10 ------- Run | Yrd Mat Sub Peak Influence 346 | 25 346 . Initial 16 | . 16 . Average 145 | 10 158 . Maximum Alert Level 1 | . 1 . Low Security (%) 65 | 100 62 . Level 1 34 | . 37 . Level 2 . | . . . Level 3 . | . . . Level 4 . | . . . Level 5 . | . . . High Security . | . . . Max Security . | . . . Squads Dispatched 5 | . 5 . Investigation 3 | . 3 . Extermination . | . . . Reinforcement 2 | . 2 . Assault . | . . . Garrison . | . . . Intercept . | . . . Searches Triggered . | . . . Construction Impeded . | . . . Haulers Reinforced . | . . . Active Scanning Responses . | . . . Cargo Convoy Interrupts . | . . . Stealth | -11 -10 -10 --------- Run | Yrd Mat Sub Distress Signals 7 | . 7 . Communications Jammed . | . . . Distress Signals . | . . . Times Spotted 41 | . 31 10 Peak Tracking Total 6 | . 6 2 Tactical Retreats . | . . . Traps | -11 -10 -10 ------- Run | Yrd Mat Sub Traps Triggered 7 | . 3 4 Indirectly . | . . . Trap Hack Attempts . | . . . Triggered . | . . . Disarmed . | . . . Reprogrammed . | . . . Reused . | . . . Traps Extracted . | . . . Installed . | . . . Triggered . | . . . Machines | -11 -10 -10 ---------- Run | Yrd Mat Sub Machines Disabled 3 | . 2 1 Max in Single Turn 1 | . 1 1 Machines Repaired . | . . . Machines Dismantled . | . . . Machines Sabotaged . | . . . Overloaded Fab Kills . | . . . Hacking | -11 -10 -10 --------- Run | Yrd Mat Sub Machines Accessed 7 | . 6 1 Terminals 4 | . 4 . Fabricators . | . . . Repair Stations . | . . . Recycling Units 2 | . 2 . Scanalyzers . | . . . Garrison Access . | . . . Total Hacks 14 | . 13 1 Successful 10 | . 9 1 Failed 4 | . 4 . Catastrophic . | . . . Database Lockouts . | . . . Manual 13 | . 13 . Terminals 11 | . 11 . Fabricators . | . . . Repair Stations . | . . . Recycling Units 2 | . 2 . Scanalyzers . | . . . Garrison Access . | . . . Terminal Hacks 5 | . 4 1 Robot Analysis 2 | . 2 . Unreport Threat 2 | . 2 . Derelict Proto ID Bank 1 | . . 1 Fabricator Hacks . | . . . Repair Station Hacks . | . . . Recycling Unit Hacks . | . . . Scanalyzer . | . . . Garrison Access Hacks . | . . . Unauthorized Hacks 5 | . 5 . Terminals 3 | . 3 . Botnet 3 | . 3 . Fabricators . | . . . Repair Stations . | . . . Recycling Units 2 | . 2 . Tunnel 2 | . 2 . Scanalyzers . | . . . Garrison Access . | . . . Data Cores Recovered . | . . . Used . | . . . Hacking Detections 4 | . 4 . Full Trace Events . | . . . Feedback Events . | . . . Feedback Blocked . | . . . Robot Schematics Acquired . | . . . Robots Built . | . . . Authchips . | . . . Time . | . . . Total Robot Build Rating . | . . . Part Schematics Acquired . | . . . Parts Built . | . . . Authchips . | . . . Time . | . . . Total Part Build Rating . | . . . Parts Repaired . | . . . Time . | . . . Parts Recycled . | . . . Recycled Matter . | . . . Retrieved Matter . | . . . Retrieved Components . | . . . Parts Scanalyzed . | . . . Part Schematics Acquired . | . . . Parts Damaged . | . . . Bothacking | -11 -10 -10 ------------ Run | Yrd Mat Sub Used RIF Installer . | . . . Robots Hacked . | . . . Non-combat . | . . . Combat . | . . . Robot Hacks Applied . | . . . Relay Couplers Released . | . . . Fabnet Peak Effective % . | . . . Robots Rewired . | . . . Allies Hacked . | . . . Hacks Repelled . | . . . Allies | -11 -10 -10 -------- Run | Yrd Mat Sub Total Allies . | . . . Largest Group . | . . . Highest-Rated Group . | . . . Highest-Rated Ally . | . . . Total Orders . | . . . Ally Attacks . | . . . Total Damage . | . . . Kills . | . . . Allies Corrupted . | . . . Allies Melted . | . . . Intel | -11 -10 -10 ------- Run | Yrd Mat Sub Robot Analysis Total 2 | . 2 . Derelict Logs Recovered . | . . . Drone Launches . | . . . Drone Recoveries . | . . . Exploration | -11 -10 -10 ------------- Run | Yrd Mat Sub Turns Passed 3091 | 132 1439 1520 Spaces Moved 1829 | 90 786 953 Core 3 | 3 . . Treads . | . . . Legs . | . . . Wheels 1826 | 87 786 953 Hover . | . . . Flight . | . . . Fastest Speed 50 | 50 100 105 Average Speed 133 | 98 145 127 Slowest Speed 195 | 100 195 150 Overloaded Moves . | . . . Propulsion Burnouts . | . . . Robots Hopped . | . . . Cave-ins Triggered . | . . . Exploration Rate (%) 48 | 5 96 44 Regions Visited 2 Branch Regions 1 Pre-discovered Areas 3 | . 2 1 Known Exits Taken . | . . . Unknown Exits Taken 2 | 1 1 . Scrap Searched 5 | . . 5 Spaces Dug 16 | . 9 7 Terrain Destroyed 21 | . 10 11 Melee 8 | . 1 7 Projectile 13 | . 9 4 AOE . | . . . Terrain Rammed . | . . . Walls Destroyed . | . . . Machines Disabled . | . . . Actions | -11 -10 -10 --------- Run | Yrd Mat Sub Total 2139 | 112 927 1100 Wait 20 | . 7 13 Move 1827 | 89 785 953 Hop . | . . . Pick Up 51 | 7 25 19 Fast Attach 9 | 7 . 2 Attach 12 | . 6 6 Detach . | . . . Swap 36 | . 18 18 Drop 22 | . 13 9 Fire 130 | 9 72 49 Melee 32 | . 1 31 Ram . | . . . Kick . | . . . Crush . | . . . Escape Stasis . | . . . Rewire . | . . . Trap . | . . . Miscellaneous . | . . . Route ------- -11/Scrapyard -10/Materials (discovered 6 exits: [*Mat x3] / [*Min x2] / *Sub) -10/Subcaves History --------- Turn | Location | Event 17 | -11/Scrapyard | Discovered new exit (range 16) 133 | -11/Scrapyard | Entered Materials 232 | -10/Materials | Discovered new exit (range 16) 317 | -10/Materials | Build established: Mutant 581 | -10/Materials | Discovered new exit (range 12) 771 | -10/Materials | Discovered new exit (range 15) 1154 | -10/Materials | Discovered new exit (range 11) 1372 | -10/Materials | Discovered new exit (range 9) 1433 | -10/Materials | Derelicts attacked the area 1563 | -10/Materials | Discovered new exit (range 8) 1572 | -10/Materials | Entered Subcaves 1631 | -10/Subcaves | Core integrity fell below 50% 2163 | -10/Subcaves | Learned location of Zion (-7) 2163 | -10/Subcaves | Met a Zionite searching for "candidates" 2477 | -10/Subcaves | Core integrity fell below 20% 2808 | -10/Subcaves | Visited 4L-MR0's lab 2826 | -10/Subcaves | Found Gun Armor 3070 | -10/Subcaves | Ambushed by Subdwellers from Twisted Machinery 3092 | -10/Subcaves | Destroyed by Z3-GZ8(R) with Subdweller Laser Last Messages --------------- 02860_ Found Barrage Gun. 02860_ Found 43 Matter. 02866_ System corrupted: Matter fused (-9). 02918_ System corrupted: Matter fused (-6). 02936_ System corrupted: Matter fused (-7). 02948_ 9J-KRS(u) builds Twisted Machinery. 02966_ System corrupted: Matter fused (-8). 02987_ BYRUT1GTD8GIZETX4ORJ4 03003_ System corrupted: Matter fused (-7). 03024_ 8E-4EJ(R) destroyed. 03032_ Subatomizers dissect the Sub. Optics. 03034_ 8A-LPV(R) destroyed. 03037_ H J3|VV> MUVZ9L:IBIAL& 03038_ Acquired 48 matter. 03044_ Acquired 39 matter. 03046_ Subatomizers dissect the Sub. Optics. 03050_ Acquired Sub. Machine Gun. 03063_ System corrupted: Heat flow error (+193). 03070_ Z3-GZ8(R) emerges from the Twisted Machinery. 03092_ System corrupted: Component data lost. Map ----- +----------------------------------------------------+ | ?????????????????????????????????????????????? | | ?????????????????????????????????????????????? | | ?????????????????????????????????????????????? | | ?????????????????????????????????????????????? | | ?????????????????????????????????????????????? | | ?????????????????????????????????????????????? | | ?????????????????????????????????????????????? | | ?????????????????????????????????????????????? | | ?????????????????????????????????????????????? | | ?????????????????????????????????????????????? | | ??????????????????###????????????????????????? | | ??????????????##?## #????????????????????????? | | "## ?????#### ?# ##???????????????????????? | | ?"" ?#?# ?# ##??????????????????????? | | ?""" # # ## #??????????????????????? | | ???" #?????#????????????????? | | ??????? #???? #????????????????? | | ??????????? RR #?????? #????????????????? | | ??????????????; #?????? #????????????????? | | ??????????????## ###???? ##???????????????? | | ???????????????# ##?? #???????????????? | | ???????????????# ##? ##??????????????? | | ???????????????## #? #??????????????? | | ????????????????##""" ## #???????????????? | | ????????????????##"" "#????????????????? | | ????????????????# " @""##???????????????? | | ????????????????## ""# " #???????????????? | | ?????????????????##%### "" #???????????????? | | ?????????????????# &!##!"#####???????????????? | | ?????????????????#" & ""#???????????????????? | | ?????????????????## &&&"##??????????????????? | | ??????????????????# "" "##?????????????????? | | ??????????????????# """## "#?????????????????? | | ?????????????????## "" ### #?????????????????? | | ?????????????????#;"""##?# ##????????????????? | | ?????????????????##""##?## #????????????????? | | ??????????????????#" #??#" ##????????????????? | | ??????????????????" ##??## "#????????????????? | | ??????????????????"##???## "#????????????????? | | ??????????????????####??# ##????????????????? | | ??????????????????## ##?# #????????????????? | | ?????????#######?## #### ##????????????????? | | ?????????# " ### # #????????????????? | | ??????#### "### ##????????????????? | | ??????#""# ##%[ ## # ##????????????????? | | ??????# #+##% "## ## #????????????????? | | ??????#" ##" "# # ##???????????????? | | ??????#" #### ## # ##??????????????? | | ??????#"" #?# #" # #??????????????? | | ??????#"X #?# # #??????????????? | +----------------------------------------------------+ Best States ------------- Heat Dissipation 39 Energy Generation 15 Energy Capacity 250 Matter Stores 300 Matter Capacity 400 Sight Range 21 Terrain Scan Density 10 Armor Coverage 150 Evasion (%) 40 Recoil Reduction 1 Item Schematics ----------------- None Robot Schematics ------------------ None Fabricated ------------ Nothing Alien Tech Used ----------------- None Achievements -------------- None Challenges ------------ None Game ------ Seed ShadingFlakCore Manual? 0 Play Time 00:27:41 Cumulative 1332.2 hours Start 2024.09.03 @ 23:32:17 End 2024.09.04 @ 00:10:54 Sessions 1 Manual Loads 0 Difficulty Rogue Special Mode None Game No. 471 Rogue 471 Adventurer 0 Explorer 0 Win Type - Total 30 Types 14/2/8/0/0/0/6/0/0 Lore% 76 Gallery% 90 Achievement% 85 Wizard Run 0 Options --------- Layout 1 ASCII 0 Keyboard 0 Movement Vi Keybinds 0 Fullscreen 0 Font 14/CherryShadow Map View 64x42 Zoom Use 0% Tactical HUD 1 Map Filters NONE Filters NONE Steam 1 RUN: 72c4a61b-b645-47bf-be8e-e057d5a17e4c